[Event "Early-Titled-Tuesday-Blitz-March-19-2024"]
[Site "Chess.com"]
[Date "2024.03.19"]
[Round "5"]
[White "DonkyDonkyDonkey"]
[Black "FairChess_on_YouTube"]
[Result "0-1"]
[WhiteElo "2973"]
[BlackElo "3141"]
[TimeControl "180+1"]
[EndTime "8:59:34 PDT"]
[Termination "FairChess_on_YouTube won by resignation"]

1. e4 {[%clk 0:03:00.9]} 1... c5 {[%clk 0:02:59]} 2. Nf3 {[%clk 0:03:01.1]} 2...
e6 {[%clk 0:02:58.7]} 3. c3 {[%clk 0:02:54]} 3... Nf6 {[%clk 0:02:56.9]} 4. e5
{[%clk 0:02:53.5]} 4... Nd5 {[%clk 0:02:57.1]} 5. d4 {[%clk 0:02:54.3]} 5...
cxd4 {[%clk 0:02:57.4]} 6. cxd4 {[%clk 0:02:54.8]} 6... d6 {[%clk 0:02:58]} 7.
Bc4 {[%clk 0:02:52]} 7... Nc6 {[%clk 0:02:53.4]} 8. O-O {[%clk 0:02:52.2]} 8...
Nb6 {[%clk 0:02:50.9]} 9. Bd3 {[%clk 0:02:52.4]} 9... Nb4 {[%clk 0:02:45.2]} 10.
Be2 {[%clk 0:02:44.1]} 10... dxe5 {[%clk 0:02:43.1]} 11. Nxe5 {[%clk 0:02:44.8]}
11... Bd6 {[%clk 0:02:35]} 12. Nc3 {[%clk 0:02:44]} 12... O-O {[%clk 0:02:34.3]}
13. a3 {[%clk 0:02:41.8]} 13... N4d5 {[%clk 0:02:25.7]} 14. Bd3 {[%clk
0:02:38.7]} 14... Bd7 {[%clk 0:02:13.8]} 15. Qe2 {[%clk 0:02:34.7]} 15... Bxe5
{[%clk 0:02:05]} 16. dxe5 {[%clk 0:02:34]} 16... Nxc3 {[%clk 0:01:59.3]} 17.
bxc3 {[%clk 0:02:34.9]} 17... Qh4 {[%clk 0:01:59.2]} 18. Be3 {[%clk 0:02:26.6]}
18... Nd5 {[%clk 0:01:49.8]} 19. Bd4 {[%clk 0:02:21.2]} 19... Nf4 {[%clk
0:01:42.6]} 20. Qe3 {[%clk 0:02:13.5]} 20... Bc6 {[%clk 0:01:24.2]} 21. f3
{[%clk 0:01:55.6]} 21... Nxd3 {[%clk 0:01:22.7]} 22. Qxd3 {[%clk 0:01:55.4]}
22... Rfd8 {[%clk 0:01:21]} 23. Qe3 {[%clk 0:01:50.5]} 23... a6 {[%clk
0:01:09.9]} 24. Rfb1 {[%clk 0:01:49.7]} 24... Rd5 {[%clk 0:01:08.7]} 25. Rb4
{[%clk 0:01:46.6]} 25... h6 {[%clk 0:01:06.5]} 26. Rab1 {[%clk 0:01:36.2]} 26...
Qg5 {[%clk 0:01:05.1]} 27. Qxg5 {[%clk 0:01:19]} 27... hxg5 {[%clk 0:01:05]} 28.
Kf2 {[%clk 0:01:19.4]} 28... Ra5 {[%clk 0:01:02.3]} 29. Ra1 {[%clk 0:01:19.8]}
29... Kh7 {[%clk 0:01:01.5]} 30. Kg3 {[%clk 0:01:18.2]} 30... Kg6 {[%clk
0:01:01.6]} 31. c4 {[%clk 0:01:01.9]} 31... Kf5 {[%clk 0:00:50.2]} 32. Kf2
{[%clk 0:00:57.1]} 32... Ra4 {[%clk 0:00:44.9]} 33. g4+ {[%clk 0:00:52.4]} 33...
Kg6 {[%clk 0:00:44.5]} 34. Bb6 {[%clk 0:00:42.8]} 34... Rh8 {[%clk 0:00:40.8]}
35. Kg3 {[%clk 0:00:41.7]} 35... Rc8 {[%clk 0:00:34.4]} 36. Rxa4 {[%clk
0:00:40.7]} 36... Bxa4 {[%clk 0:00:34.6]} 37. c5 {[%clk 0:00:41.4]} 37... Bc6
{[%clk 0:00:33]} 38. Rd1 {[%clk 0:00:40.5]} 38... Bd5 {[%clk 0:00:33.2]} 39. Rd2
{[%clk 0:00:38.7]} 39... Rh8 {[%clk 0:00:32.2]} 40. Rd3 {[%clk 0:00:36.7]} 40...
Rh7 {[%clk 0:00:30.5]} 41. Rd2 {[%clk 0:00:36.6]} 41... Rh8 {[%clk 0:00:30.9]}
42. Rd3 {[%clk 0:00:36.9]} 42... f5 {[%clk 0:00:28.3]} 43. exf6 {[%clk
0:00:31.5]} 43... gxf6 {[%clk 0:00:29.2]} 44. h3 {[%clk 0:00:29.2]} 44... Rh7
{[%clk 0:00:28]} 45. Rd2 {[%clk 0:00:28.7]} 45... Rh8 {[%clk 0:00:27.5]} 46. Re2
{[%clk 0:00:28.3]} 46... Rh7 {[%clk 0:00:21.3]} 47. Re3 {[%clk 0:00:28.2]} 47...
f5 {[%clk 0:00:20.8]} 48. Rd3 {[%clk 0:00:25.4]} 48... f4+ {[%clk 0:00:18.9]}
49. Kg2 {[%clk 0:00:25.4]} 49... Rd7 {[%clk 0:00:18.8]} 50. Kf2 {[%clk
0:00:25.8]} 50... Kf6 {[%clk 0:00:16.6]} 51. Ba5 {[%clk 0:00:25.7]} 51... e5
{[%clk 0:00:15.1]} 52. Rd1 {[%clk 0:00:25.3]} 52... Ke6 {[%clk 0:00:15]} 53. Bc3
{[%clk 0:00:25.2]} 53... Rh7 {[%clk 0:00:13.6]} 54. Re1 {[%clk 0:00:25.4]} 54...
e4 {[%clk 0:00:14]} 55. fxe4 {[%clk 0:00:24.7]} 55... Bc6 {[%clk 0:00:14.6]} 56.
Kg2 {[%clk 0:00:24.5]} 56... Rd7 {[%clk 0:00:15.2]} 57. Bh8 {[%clk 0:00:10.1]}
57... Rd2+ {[%clk 0:00:14.2]} 58. Kf3 {[%clk 0:00:09.9]} 58... Rh2 {[%clk
0:00:13.8]} 59. Bg7 {[%clk 0:00:08.2]} 59... Rxh3+ {[%clk 0:00:14.1]} 60. Kf2
{[%clk 0:00:09]} 60... Rxa3 {[%clk 0:00:13.6]} 61. Rd1 {[%clk 0:00:09]} 61...
Ra2+ {[%clk 0:00:11.8]} 62. Kf3 {[%clk 0:00:09]} 62... Ra3+ {[%clk 0:00:12.2]}
63. Kf2 {[%clk 0:00:09.3]} 63... Bxe4 {[%clk 0:00:12.6]} 64. Rd6+ {[%clk
0:00:09.9]} 64... Kf7 {[%clk 0:00:12.9]} 65. Bf6 {[%clk 0:00:07.6]} 65... Ra2+
{[%clk 0:00:12.9]} 66. Ke1 {[%clk 0:00:07.6]} 66... f3 {[%clk 0:00:12.4]} 67.
Bxg5 {[%clk 0:00:07.9]} 67... Bc6 {[%clk 0:00:09.5]} 68. Bh4 {[%clk 0:00:07.2]}
68... Rg2 {[%clk 0:00:09]} 69. g5 {[%clk 0:00:07]} 69... Rg4 {[%clk 0:00:09.1]}
70. Rh6 {[%clk 0:00:05.4]} 70... a5 {[%clk 0:00:09]} 71. Kf2 {[%clk 0:00:03.7]}
71... a4 {[%clk 0:00:09.4]} 72. Rf6+ {[%clk 0:00:03.9]} 72... Kg7 {[%clk
0:00:09.3]} 73. Bg3 {[%clk 0:00:04.8]} 73... Rxg5 {[%clk 0:00:09.6]} 74. Rd6
{[%clk 0:00:04]} 74... Rxc5 {[%clk 0:00:09.7]} 75. Rd3 {[%clk 0:00:04.8]} 75...
Rc2+ {[%clk 0:00:09.6]} 76. Ke3 {[%clk 0:00:05.6]} 76... Re2+ {[%clk 0:00:09.6]}
77. Kf4 {[%clk 0:00:05.1]} 77... f2 {[%clk 0:00:09.7]} 78. Rd1 {[%clk
0:00:04.9]} 78... Bg2 {[%clk 0:00:09.8]} 79. Bxf2 {[%clk 0:00:02.2]} 79... Rxf2+
{[%clk 0:00:10.7]} 80. Kg3 {[%clk 0:00:02.9]} 80... Ra2 {[%clk 0:00:10.7]} 81.
Rb1 {[%clk 0:00:02.7]} 81... Kf6 {[%clk 0:00:10.8]} 82. Kf4 {[%clk 0:00:03.3]}
82... Bc6 {[%clk 0:00:10.6]} 83. Ke3 {[%clk 0:00:03.9]} 83... Ke5 {[%clk
0:00:11.1]} 84. Kd3 {[%clk 0:00:04.3]} 84... Kd5 {[%clk 0:00:11.3]} 85. Kc3
{[%clk 0:00:05]} 85... Kc5 {[%clk 0:00:11.6]} 86. Rg1 {[%clk 0:00:05.8]} 86...
Ra3+ {[%clk 0:00:12]} 87. Kb2 {[%clk 0:00:06.5]} 87... Rf3 {[%clk 0:00:12.5]}
88. Kb1 {[%clk 0:00:06.5]} 88... Kb4 {[%clk 0:00:12]} 89. Ka1 {[%clk 0:00:07.2]}
89... Rh3 {[%clk 0:00:10.2]} 90. Kb2 {[%clk 0:00:04.8]} 90... Rh2+ {[%clk
0:00:10.5]} 91. Ka1 {[%clk 0:00:05.1]} 91... Rh1 {[%clk 0:00:11.1]} 0-1

[Event "Early-Titled-Tuesday-Blitz-March-19-2024"]
[Site "Chess.com"]
[Date "2024.03.19"]
[Round "6"]
[White "venturov"]
[Black "enriquebutti"]
[Result "1-0"]
[WhiteElo "2489"]
[BlackElo "2189"]
[TimeControl "180+1"]
[EndTime "9:01:59 PDT"]
[Termination "venturov won by resignation"]

1. e4 {[%clk 0:03:00.9]} 1... c5 {[%clk 0:02:57.4]} 2. Nf3 {[%clk 0:03:00.7]}
2... d6 {[%clk 0:02:51.5]} 3. d4 {[%clk 0:03:00.6]} 3... cxd4 {[%clk 0:02:48.6]}
4. Nxd4 {[%clk 0:03:01.5]} 4... Nf6 {[%clk 0:02:45.8]} 5. Nc3 {[%clk 0:03:02]}
5... a6 {[%clk 0:02:43.2]} 6. Bc4 {[%clk 0:03:02.3]} 6... e6 {[%clk 0:02:41.5]}
7. O-O {[%clk 0:03:01.9]} 7... Be7 {[%clk 0:02:34]} 8. Re1 {[%clk 0:03:01.4]}
8... O-O {[%clk 0:02:32.7]} 9. Bb3 {[%clk 0:03:01.2]} 9... b5 {[%clk 0:02:30.9]}
10. Qf3 {[%clk 0:03:00.8]} 10... Bb7 {[%clk 0:02:30.3]} 11. Qg3 {[%clk
0:02:50.6]} 11... Nbd7 {[%clk 0:02:28.9]} 12. Bxe6 {[%clk 0:02:45.5]} 12... fxe6
{[%clk 0:02:23]} 13. Nxe6 {[%clk 0:02:46.4]} 13... Nh5 {[%clk 0:02:20]} 14. Qh3
{[%clk 0:02:41.7]} 14... Qe8 {[%clk 0:02:18.9]} 15. Nd5 {[%clk 0:02:33]} 15...
Qg6 {[%clk 0:02:11]} 16. Nxe7+ {[%clk 0:02:31.6]} 1-0

[Event "Early-Titled-Tuesday-Blitz-March-19-2024"]
[Site "Chess.com"]
[Date "2024.03.19"]
[Round "6"]
[White "talaicito"]
[Black "otrov-11"]
[Result "1-0"]
[WhiteElo "2289"]
[BlackElo "2590"]
[TimeControl "180+1"]
[EndTime "9:02:10 PDT"]
[Termination "talaicito won by checkmate"]

1. d4 {[%clk 0:03:00.9]} 1... Nf6 {[%clk 0:02:56.7]} 2. Nc3 {[%clk 0:03:00.9]}
2... d5 {[%clk 0:02:56.4]} 3. Bf4 {[%clk 0:03:00.1]} 3... e6 {[%clk 0:02:55.1]}
4. e3 {[%clk 0:03:00.6]} 4... Bd6 {[%clk 0:02:55.1]} 5. Nf3 {[%clk 0:03:00.3]}
5... O-O {[%clk 0:02:55.6]} 6. Bd3 {[%clk 0:02:59.9]} 6... c5 {[%clk 0:02:56.2]}
7. dxc5 {[%clk 0:02:59.9]} 7... Bxf4 {[%clk 0:02:55.1]} 8. exf4 {[%clk
0:03:00.8]} 8... Qc7 {[%clk 0:02:55.6]} 9. Ne5 {[%clk 0:03:00.7]} 9... Qxc5
{[%clk 0:02:55.5]} 10. O-O {[%clk 0:03:01.2]} 10... Nc6 {[%clk 0:02:55.8]} 11.
Re1 {[%clk 0:03:00.9]} 11... Bd7 {[%clk 0:02:51.9]} 12. a3 {[%clk 0:03:00.1]}
12... Rfc8 {[%clk 0:02:51.1]} 13. Qf3 {[%clk 0:02:53.3]} 13... Ne7 {[%clk
0:02:48.8]} 14. Qh3 {[%clk 0:02:46.4]} 14... Ng6 {[%clk 0:02:44.1]} 15. Rad1
{[%clk 0:02:34]} 15... Be8 {[%clk 0:02:37.6]} 16. f5 {[%clk 0:02:13.8]} 16...
Nxe5 {[%clk 0:02:32.3]} 17. Rxe5 {[%clk 0:02:13.5]} 17... exf5 {[%clk
0:02:32.6]} 18. Bxf5 {[%clk 0:02:09.5]} 18... Rd8 {[%clk 0:02:32.7]} 19. Nxd5
{[%clk 0:02:05.2]} 19... Nxd5 {[%clk 0:02:28.3]} 20. Qxh7+ {[%clk 0:02:03.8]}
20... Kf8 {[%clk 0:02:28.5]} 21. Qh8# {[%clk 0:02:04.3]} 1-0

[Event "Early-Titled-Tuesday-Blitz-March-19-2024"]
[Site "Chess.com"]
[Date "2024.03.19"]
[Round "6"]
[White "Mikhail_Golubev"]
[Black "Herzog2012"]
[Result "1-0"]
[WhiteElo "2724"]
[BlackElo "2532"]
[TimeControl "180+1"]
[EndTime "9:02:26 PDT"]
[Termination "Mikhail_Golubev won by resignation"]

1. e4 {[%clk 0:03:00.9]} 1... c5 {[%clk 0:02:59.5]} 2. Nf3 {[%clk 0:03:00.6]}
2... d6 {[%clk 0:02:59.7]} 3. d4 {[%clk 0:03:00.7]} 3... cxd4 {[%clk 0:03:00.6]}
4. Nxd4 {[%clk 0:03:01.1]} 4... Nf6 {[%clk 0:03:01]} 5. Nc3 {[%clk 0:03:01.8]}
5... Nc6 {[%clk 0:03:01.3]} 6. Bc4 {[%clk 0:03:00.5]} 6... Qb6 {[%clk
0:03:00.5]} 7. Nb3 {[%clk 0:02:59.5]} 7... e6 {[%clk 0:02:58.5]} 8. Bf4 {[%clk
0:02:57.5]} 8... Ne5 {[%clk 0:02:57.5]} 9. Be2 {[%clk 0:02:57.2]} 9... a6 {[%clk
0:02:49.3]} 10. g4 {[%clk 0:02:55.9]} 10... h6 {[%clk 0:02:46.7]} 11. Be3 {[%clk
0:02:44.4]} 11... Qc7 {[%clk 0:02:40.4]} 12. f4 {[%clk 0:02:44]} 12... Nc4
{[%clk 0:02:38.2]} 13. Bxc4 {[%clk 0:02:43.9]} 13... Qxc4 {[%clk 0:02:39.1]} 14.
Qf3 {[%clk 0:02:43.6]} 14... Bd7 {[%clk 0:02:27.5]} 15. O-O-O {[%clk 0:02:40.1]}
15... Bc6 {[%clk 0:02:05.6]} 16. Rd4 {[%clk 0:02:33.2]} 16... b5 {[%clk
0:01:51.6]} 17. Rxc4 {[%clk 0:02:31]} 17... bxc4 {[%clk 0:01:52.5]} 18. Na5
{[%clk 0:02:30.5]} 18... Rc8 {[%clk 0:01:50.5]} 19. Nxc6 {[%clk 0:02:30.1]}
19... Rxc6 {[%clk 0:01:50.6]} 20. e5 {[%clk 0:02:30]} 1-0

[Event "Early-Titled-Tuesday-Blitz-March-19-2024"]
[Site "Chess.com"]
[Date "2024.03.19"]
[Round "6"]
[White "m_ezat"]
[Black "NovakRatko"]
[Result "1/2-1/2"]
[WhiteElo "2592"]
[BlackElo "2412"]
[TimeControl "180+1"]
[EndTime "9:02:55 PDT"]
[Termination "Game drawn by agreement"]

1. d4 {[%clk 0:03:00.9]} 1... d5 {[%clk 0:02:59.8]} 2. c4 {[%clk 0:03:00.4]}
2... c5 {[%clk 0:03:00]} 3. cxd5 {[%clk 0:02:58.3]} 3... Qxd5 {[%clk 0:03:00.9]}
4. Nf3 {[%clk 0:02:57.6]} 4... cxd4 {[%clk 0:03:00.6]} 5. Nc3 {[%clk 0:02:37.3]}
5... Qa5 {[%clk 0:02:59.1]} 6. Nxd4 {[%clk 0:02:35.7]} 6... e5 {[%clk
0:02:59.4]} 7. Nb3 {[%clk 0:02:35.2]} 7... Qc7 {[%clk 0:02:59.6]} 8. Nd5 {[%clk
0:02:34.4]} 8... Qd6 {[%clk 0:02:58.7]} 9. e4 {[%clk 0:02:34.6]} 9... Nf6 {[%clk
0:02:58.2]} 10. Nxf6+ {[%clk 0:02:31.1]} 10... Qxf6 {[%clk 0:02:58.1]} 11. Be3
{[%clk 0:02:30.9]} 11... Bb4+ {[%clk 0:02:57.9]} 12. Bd2 {[%clk 0:02:31.1]}
12... Bxd2+ {[%clk 0:02:45]} 13. Qxd2 {[%clk 0:02:32]} 13... O-O {[%clk
0:02:45.6]} 14. Bc4 {[%clk 0:02:30]} 14... Rd8 {[%clk 0:02:45.3]} 15. Qe3 {[%clk
0:02:30.2]} 15... Be6 {[%clk 0:02:42.7]} 16. Bxe6 {[%clk 0:02:28.6]} 16... Qxe6
{[%clk 0:02:42.9]} 17. O-O {[%clk 0:02:29]} 17... Nc6 {[%clk 0:02:42.7]} 18.
Rfd1 {[%clk 0:02:27.6]} 18... b6 {[%clk 0:02:37.9]} 19. h3 {[%clk 0:02:23.6]}
19... h6 {[%clk 0:02:29.4]} 20. Rac1 {[%clk 0:02:23.3]} 20... Nd4 {[%clk
0:02:27.9]} 21. Nxd4 {[%clk 0:02:22.4]} 21... exd4 {[%clk 0:02:28]} 22. Rxd4
{[%clk 0:02:21.1]} 22... Rxd4 {[%clk 0:02:28.1]} 23. Qxd4 {[%clk 0:02:21.3]}
23... Qxa2 {[%clk 0:02:28.4]} 24. Rc7 {[%clk 0:02:19.9]} 24... Re8 {[%clk
0:02:22.5]} 25. e5 {[%clk 0:02:14.8]} 25... Qe6 {[%clk 0:02:18.9]} 26. Rxa7
{[%clk 0:02:14.8]} 26... Qxe5 {[%clk 0:02:18.7]} 27. Qxe5 {[%clk 0:02:15.1]}
27... Rxe5 {[%clk 0:02:18.9]} 28. Ra8+ {[%clk 0:02:13.8]} 28... Kh7 {[%clk
0:02:18.7]} 29. Ra7 {[%clk 0:02:14.4]} 29... Kg6 {[%clk 0:02:17.1]} 30. Rd7
{[%clk 0:02:13.4]} 30... Rb5 {[%clk 0:02:14.2]} 31. Rd2 {[%clk 0:02:12.4]}
1/2-1/2

[Event "Early-Titled-Tuesday-Blitz-March-19-2024"]
[Site "Chess.com"]
[Date "2024.03.19"]
[Round "6"]
[White "FREDERICKtheMATE"]
[Black "Fore_Man"]
[Result "1-0"]
[WhiteElo "2691"]
[BlackElo "2319"]
[TimeControl "180+1"]
[EndTime "9:03:29 PDT"]
[Termination "FREDERICKtheMATE won by resignation"]

1. d4 {[%clk 0:03:00.9]} 1... c5 {[%clk 0:02:57.8]} 2. d5 {[%clk 0:03:00.6]}
2... d6 {[%clk 0:02:57.7]} 3. c4 {[%clk 0:03:00.8]} 3... Nd7 {[%clk 0:02:58.3]}
4. Nc3 {[%clk 0:03:00.8]} 4... Ngf6 {[%clk 0:02:58.8]} 5. e4 {[%clk 0:03:01.1]}
5... g6 {[%clk 0:02:59.5]} 6. Be2 {[%clk 0:03:00.6]} 6... Bg7 {[%clk 0:02:59.8]}
7. f4 {[%clk 0:03:01.2]} 7... O-O {[%clk 0:03:00.6]} 8. Nf3 {[%clk 0:03:00.4]}
8... a6 {[%clk 0:02:59.8]} 9. a4 {[%clk 0:02:55.1]} 9... Rb8 {[%clk 0:02:59.7]}
10. O-O {[%clk 0:02:53.1]} 10... b5 {[%clk 0:02:54]} 11. axb5 {[%clk 0:02:52.9]}
11... axb5 {[%clk 0:02:54.9]} 12. cxb5 {[%clk 0:02:53.8]} 12... Nb6 {[%clk
0:02:51.7]} 13. h3 {[%clk 0:02:53.4]} 13... Re8 {[%clk 0:02:50.5]} 14. Be3
{[%clk 0:02:49.5]} 14... e6 {[%clk 0:02:48.8]} 15. dxe6 {[%clk 0:02:49.4]} 15...
Bxe6 {[%clk 0:02:46.8]} 16. Nd2 {[%clk 0:02:41.5]} 16... Nfd7 {[%clk 0:02:08.6]}
17. Kh2 {[%clk 0:02:22.3]} 17... f5 {[%clk 0:02:06.6]} 18. g4 {[%clk 0:02:19.6]}
18... fxe4 {[%clk 0:02:00.3]} 19. Ndxe4 {[%clk 0:02:18.6]} 19... Nc4 {[%clk
0:01:56]} 20. Bxc4 {[%clk 0:02:17.7]} 20... Bxc4 {[%clk 0:01:56.9]} 21. Nxd6
{[%clk 0:02:18.2]} 21... Bxf1 {[%clk 0:01:55.1]} 22. Nxe8 {[%clk 0:02:16.8]}
22... Qxe8 {[%clk 0:01:55]} 23. Qd5+ {[%clk 0:02:05.6]} 23... Kh8 {[%clk
0:01:54]} 24. Rxf1 {[%clk 0:02:02.3]} 24... Qxe3 {[%clk 0:01:42.1]} 25. Qxd7
{[%clk 0:01:59.7]} 25... Qd2+ {[%clk 0:01:40.9]} 26. Qxd2 {[%clk 0:01:58.6]} 1-0

[Event "Early-Titled-Tuesday-Blitz-March-19-2024"]
[Site "Chess.com"]
[Date "2024.03.19"]
[Round "6"]
[White "Alen_Yeremyann"]
[Black "mitrabhaa"]
[Result "0-1"]
[WhiteElo "2817"]
[BlackElo "3066"]
[TimeControl "180+1"]
[EndTime "9:03:34 PDT"]
[Termination "mitrabhaa won by checkmate"]

1. c4 {[%clk 0:03:00.9]} 1... g6 {[%clk 0:02:57.2]} 2. g3 {[%clk 0:03:00.9]}
2... Bg7 {[%clk 0:02:57.4]} 3. Bg2 {[%clk 0:03:01.7]} 3... c5 {[%clk 0:02:57.3]}
4. Nf3 {[%clk 0:03:02.4]} 4... e6 {[%clk 0:02:57.9]} 5. O-O {[%clk 0:03:03.2]}
5... Ne7 {[%clk 0:02:58.6]} 6. d4 {[%clk 0:02:59.4]} 6... cxd4 {[%clk
0:02:52.4]} 7. Nxd4 {[%clk 0:03:00.3]} 7... O-O {[%clk 0:02:51.4]} 8. Nc3 {[%clk
0:02:58.3]} 8... Nbc6 {[%clk 0:02:51.4]} 9. Ndb5 {[%clk 0:02:58.1]} 9... Nf5
{[%clk 0:02:51]} 10. e4 {[%clk 0:02:53.6]} 10... Nfd4 {[%clk 0:02:49.7]} 11. Be3
{[%clk 0:02:54.1]} 11... e5 {[%clk 0:02:48.8]} 12. Nd5 {[%clk 0:02:53]} 12... d6
{[%clk 0:02:47.3]} 13. Nxd4 {[%clk 0:02:49.5]} 13... Nxd4 {[%clk 0:02:45.4]} 14.
f4 {[%clk 0:02:49.4]} 14... Be6 {[%clk 0:02:43.9]} 15. f5 {[%clk 0:02:46.1]}
15... Bxd5 {[%clk 0:02:42.4]} 16. cxd5 {[%clk 0:02:46.9]} 16... Rc8 {[%clk
0:02:40.4]} 17. g4 {[%clk 0:02:46.7]} 17... Nc2 {[%clk 0:02:40.2]} 18. Qe2
{[%clk 0:02:35.3]} 18... Nxa1 {[%clk 0:02:35.8]} 19. Rxa1 {[%clk 0:02:36.2]}
19... Qa5 {[%clk 0:02:35.5]} 20. Rf1 {[%clk 0:02:31.1]} 20... Rfd8 {[%clk
0:02:20.7]} 21. g5 {[%clk 0:02:25.7]} 21... Qxa2 {[%clk 0:02:18.5]} 22. h4
{[%clk 0:02:21.8]} 22... Qb3 {[%clk 0:02:15.1]} 23. h5 {[%clk 0:02:20.5]} 23...
Rc2 {[%clk 0:02:12.2]} 24. Qf3 {[%clk 0:02:20.8]} 24... gxf5 {[%clk 0:02:11.5]}
25. exf5 {[%clk 0:02:12.4]} 25... e4 {[%clk 0:02:10.9]} 26. Qxe4 {[%clk
0:01:52.9]} 26... Re2 {[%clk 0:02:09.5]} 27. Rf3 {[%clk 0:01:53.6]} 27... Be5
{[%clk 0:02:07]} 28. f6 {[%clk 0:01:45.4]} 28... Qxb2 {[%clk 0:01:58.8]} 29. Bf1
{[%clk 0:01:44.4]} 29... Rxe3 {[%clk 0:01:56]} 30. Rxe3 {[%clk 0:01:39.7]} 30...
Qh2# {[%clk 0:01:56.3]} 0-1

[Event "Early-Titled-Tuesday-Blitz-March-19-2024"]
[Site "Chess.com"]
[Date "2024.03.19"]
[Round "6"]
[White "lamomiajunior"]
[Black "Bauman_Guy"]
[Result "0-1"]
[WhiteElo "2730"]
[BlackElo "2925"]
[TimeControl "180+1"]
[EndTime "9:03:40 PDT"]
[Termination "Bauman_Guy won by resignation"]

1. d4 {[%clk 0:03:00.9]} 1... Nf6 {[%clk 0:03:00]} 2. c4 {[%clk 0:03:01.5]} 2...
e6 {[%clk 0:03:00.3]} 3. Nc3 {[%clk 0:03:02]} 3... Bb4 {[%clk 0:03:00.9]} 4. e3
{[%clk 0:03:02.6]} 4... O-O {[%clk 0:03:00.6]} 5. Bd2 {[%clk 0:03:02.6]} 5... b6
{[%clk 0:03:00.3]} 6. Nf3 {[%clk 0:03:02.5]} 6... Bb7 {[%clk 0:03:00.9]} 7. Bd3
{[%clk 0:03:03.2]} 7... d6 {[%clk 0:03:01]} 8. a3 {[%clk 0:03:02.9]} 8... Bxc3
{[%clk 0:03:00.7]} 9. Bxc3 {[%clk 0:03:03.8]} 9... Ne4 {[%clk 0:03:00.8]} 10.
Bxe4 {[%clk 0:03:04.2]} 10... Bxe4 {[%clk 0:03:01.7]} 11. d5 {[%clk 0:03:05.1]}
11... e5 {[%clk 0:03:02.2]} 12. O-O {[%clk 0:03:03.8]} 12... a5 {[%clk
0:03:01.9]} 13. b3 {[%clk 0:03:00.6]} 13... Nd7 {[%clk 0:03:01.5]} 14. h3 {[%clk
0:02:58.8]} 14... Qf6 {[%clk 0:02:48.7]} 15. Nh2 {[%clk 0:02:56.8]} 15... Qg6
{[%clk 0:02:44.2]} 16. f3 {[%clk 0:02:56.6]} 16... Bc2 {[%clk 0:02:44.8]} 17.
Qe2 {[%clk 0:02:54.8]} 17... Bxb3 {[%clk 0:02:45.2]} 18. e4 {[%clk 0:02:53.9]}
18... f5 {[%clk 0:02:37.8]} 19. a4 {[%clk 0:02:53.8]} 19... Nc5 {[%clk
0:02:36.1]} 20. Rfb1 {[%clk 0:02:52.7]} 20... Bxa4 {[%clk 0:02:35.6]} 21. exf5
{[%clk 0:02:48.1]} 21... Qxf5 {[%clk 0:02:31.6]} 22. Ng4 {[%clk 0:02:48.6]}
22... Bc2 {[%clk 0:02:30.3]} 23. Rc1 {[%clk 0:02:44.2]} 23... Bd3 {[%clk
0:02:30.1]} 24. Qd2 {[%clk 0:02:41.1]} 24... Qf4 {[%clk 0:02:28.7]} 25. Qb2
{[%clk 0:02:36.8]} 25... Bxc4 {[%clk 0:02:12.4]} 26. Bd2 {[%clk 0:02:35.7]}
26... Nd3 {[%clk 0:01:57]} 27. Qc3 {[%clk 0:02:35.9]} 27... Nxc1 {[%clk
0:01:46.1]} 28. Rxc1 {[%clk 0:02:36.8]} 28... Qd4+ {[%clk 0:01:40.2]} 29. Qxd4
{[%clk 0:02:36.6]} 29... exd4 {[%clk 0:01:41.1]} 30. Rxc4 {[%clk 0:02:36.3]}
30... a4 {[%clk 0:01:41.7]} 31. Rxd4 {[%clk 0:02:28.9]} 31... a3 {[%clk
0:01:35.5]} 32. Bc3 {[%clk 0:02:29.5]} 32... a2 {[%clk 0:01:29.7]} 33. Ba1
{[%clk 0:02:29.9]} 33... Ra3 {[%clk 0:01:29.7]} 34. Rd2 {[%clk 0:02:29.1]} 34...
Rfa8 {[%clk 0:01:27.8]} 35. Rc2 {[%clk 0:02:29.4]} 35... Rb3 {[%clk 0:01:27.5]}
0-1

[Event "Early-Titled-Tuesday-Blitz-March-19-2024"]
[Site "Chess.com"]
[Date "2024.03.19"]
[Round "6"]
[White "ajedrezsinlimites"]
[Black "pirulillo"]
[Result "1-0"]
[WhiteElo "2611"]
[BlackElo "2368"]
[TimeControl "180+1"]
[EndTime "9:03:42 PDT"]
[Termination "ajedrezsinlimites won by checkmate"]

1. e4 {[%clk 0:02:58.1]} 1... c5 {[%clk 0:02:58.1]} 2. Nf3 {[%clk 0:02:57.6]}
2... e6 {[%clk 0:02:57.9]} 3. d4 {[%clk 0:02:56.8]} 3... cxd4 {[%clk 0:02:57.9]}
4. Nxd4 {[%clk 0:02:57.7]} 4... Nf6 {[%clk 0:02:57.5]} 5. Nc3 {[%clk 0:02:56.8]}
5... Nc6 {[%clk 0:02:57.3]} 6. Ndb5 {[%clk 0:02:56]} 6... d6 {[%clk 0:02:57.1]}
7. Bf4 {[%clk 0:02:55.5]} 7... e5 {[%clk 0:02:56.5]} 8. Bg5 {[%clk 0:02:56.2]}
8... a6 {[%clk 0:02:55.5]} 9. Na3 {[%clk 0:02:56.8]} 9... b5 {[%clk 0:02:55.3]}
10. Nd5 {[%clk 0:02:57.1]} 10... Be7 {[%clk 0:02:55.3]} 11. Bxf6 {[%clk
0:02:57.8]} 11... Bxf6 {[%clk 0:02:55.1]} 12. c3 {[%clk 0:02:58.7]} 12... O-O
{[%clk 0:02:51.7]} 13. Nc2 {[%clk 0:02:59.6]} 13... Bg5 {[%clk 0:02:51.1]} 14.
a4 {[%clk 0:02:58.5]} 14... bxa4 {[%clk 0:02:47.4]} 15. Rxa4 {[%clk 0:02:59.4]}
15... a5 {[%clk 0:02:46.6]} 16. Bc4 {[%clk 0:02:59.3]} 16... Rb8 {[%clk
0:02:46.2]} 17. b3 {[%clk 0:02:59.6]} 17... Kh8 {[%clk 0:02:44.4]} 18. O-O
{[%clk 0:02:59.6]} 18... f5 {[%clk 0:02:42.3]} 19. exf5 {[%clk 0:02:59.8]} 19...
Bxf5 {[%clk 0:02:41.9]} 20. Nde3 {[%clk 0:02:59.8]} 20... Bg6 {[%clk 0:02:40.9]}
21. Qd5 {[%clk 0:02:57.2]} 21... Ne7 {[%clk 0:02:34.8]} 22. Qxa5 {[%clk
0:02:48.5]} 22... Qc8 {[%clk 0:02:27.4]} 23. Nb4 {[%clk 0:02:36.5]} 23... Bxe3
{[%clk 0:02:22.2]} 24. fxe3 {[%clk 0:02:35]} 24... Rxf1+ {[%clk 0:02:21.7]} 25.
Kxf1 {[%clk 0:02:31.9]} 25... Qf5+ {[%clk 0:02:18.9]} 26. Ke1 {[%clk 0:02:16]}
26... Rf8 {[%clk 0:02:14.7]} 27. Ra1 {[%clk 0:01:37.4]} 27... Qf2+ {[%clk
0:02:10.3]} 28. Kd1 {[%clk 0:01:38]} 28... Qxe3 {[%clk 0:02:05.2]} 29. g4 {[%clk
0:01:37.4]} 29... Rf2 {[%clk 0:01:56.7]} 30. Qd8+ {[%clk 0:01:33.8]} 30... Ng8
{[%clk 0:01:54.2]} 31. Qxg8# {[%clk 0:01:33.9]} 1-0